fUSD/lending_fUSD_20251229
["ID","MTS","AMOUNT","RATE_DAILY","PERIOD"]
[400009114,1767017442942,-378.0,0.00017783,2]
[400009115,1767017442952,-3671.0,0.00017808,2]
[400009116,1767017442961,-390.60941251,0.00017812,2]
[400009117,1767017442970,-378.0,0.00017882,2]
[400009119,1767017442979,-378.0,0.00017886,2]
[400009121,1767017442988,-3584.53505189,0.000179,2]
[400009123,1767017442997,-10000.0,0.000179,2]
[400009125,1767017443006,-1092.6,0.00017931,2]
[400009126,1767017443015,-148097.81842165,0.00017998,2]
[400009128,1767017443024,-300.0,0.00017999,2]
[400009130,1767017443034,-300.0,0.00017999,2]
[400009132,1767017443043,-666.0,0.00017999,2]
[400009133,1767017443053,-300.0,0.00017999,2]
[400009134,1767017443061,-395376.06063863,0.00018,2]
[400009135,1767017443071,-151.0,0.00018,2]
[400009136,1767017443081,-151.0,0.00018,2]
[400009137,1767017443090,-151.0,0.00018,2]
[400009138,1767017443100,-170.582746,0.00018,2]
[400009139,1767017443110,-422.845317,0.00018,2]
[400009140,1767017443119,-422.845317,0.00018,2]
[400009141,1767017443130,-422.845317,0.00018,2]
[400009142,1767017443140,-422.845317,0.00018,2]
[400009143,1767017443149,-352.483327,0.00018,2]
[400009144,1767017443159,-352.483327,0.00018,2]
[400009145,1767017443169,-288.792626,0.00018,2]
[400009146,1767017443178,-352.483327,0.00018,2]
[400009147,1767017443187,-352.483327,0.00018,2]
[400009148,1767017443197,-151.0,0.00018,2]
[400009149,1767017443206,-151.0,0.00018,2]
[400009150,1767017443216,-378.0,0.00018058,2]
[400009151,1767017443225,-166.66,0.0001807,2]
[400009152,1767017443235,-378.0,0.00018146,2]
[400009153,1767017443244,-378.0,0.00018174,2]
[400009154,1767017443254,-378.0,0.00018252,2]
[400009155,1767017443263,-378.0,0.0001839,2]
[400009156,1767017443272,-378.0,0.00018395,2]
[400009157,1767017443282,-378.0,0.00018424,2]
[400009158,1767017443291,-378.0,0.00018531,2]
[400009159,1767017443301,-378.0,0.0001857,2]
[400009160,1767017443311,-166.66,0.00018613,2]
[400009161,1767017443323,-378.0,0.0001868,2]
[400009162,1767017443333,-7224.68189263,0.00018681,2]
[400009163,1767017443343,-378.0,0.00018706,2]
[400009164,1767017443353,-193.7,0.00018717,2]
[400009165,1767017443363,-587.0,0.00018735,2]
[400009166,1767017443372,-250.0,0.0001874,2]
[400009167,1767017443382,-153.43,0.000188,2]
[400009168,1767017443394,-153.43,0.000188,2]
[400009169,1767017443404,-153.43,0.000188,2]
[400009170,1767017443413,-153.43,0.000188,2]
[400009171,1767017443423,-313.52630456,0.000189,2]
[400009172,1767017443432,-3724.5,0.00018961,2]
[400009173,1767017443441,-27478.21205661,0.00019,2]
[400009174,1767017443450,-203.07573084,0.00019,2]
[400009175,1767017443460,-300.0,0.00019,2]
[400009176,1767017443470,-234.92451439,0.00019078,2]
[400009177,1767017443479,-200.77537576,0.00019082,2]
[400009178,1767017443489,-300.0,0.00019153,2]
[400009179,1767017443498,-666.0,0.00019153,2]
[400009180,1767017443507,-4841.4893562,0.00019154,2]
[400009181,1767017443517,-1290.8615817,0.00019154,2]
[400009182,1767017443527,-12362.1173389,0.00019154,2]
[400009183,1767017443537,-19885.9551569,0.00019154,2]
[400009184,1767017443547,-3373.8348027,0.00019154,2]
[400009185,1767017443556,-166.66,0.00019156,2]
[400009186,1767017443565,-766.8860501,0.00019167,2]
[400009187,1767017443575,-2298.0850444,0.00019167,2]
[400009188,1767017443583,-1800.54,0.00019178,2]
[400009189,1767017443593,-151.0,0.00019178,2]
[400009190,1767017443602,-2031.481272,0.00019178,2]
[400009191,1767017443611,-2031.481272,0.00019178,2]
[400009192,1767017443620,-2031.481272,0.00019178,2]
[400009193,1767017443629,-2031.481272,0.00019178,2]
[400009194,1767017443639,-8641.1556962,0.00019191,2]
[400009195,1767017443648,-433.38,0.00019276,2]
[400009196,1767017443657,-174.63,0.00019364,2]
[400009197,1767017443666,-438.64,0.00019535,2]
[400009198,1767017443676,-1000.0,0.00019618,2]
[400009199,1767017443685,-1080.2822954,0.00019636,2]
[400009200,1767017443694,-288.0301514,0.00019636,2]
[400009201,1767017443704,-2758.3612216,0.00019636,2]
[400009202,1767017443713,-4437.1563588,0.00019636,2]
[400009203,1767017443722,-752.8042998,0.00019636,2]
[400009204,1767017443731,-171.1154071,0.00019652,2]
[400009205,1767017443740,-512.772084,0.00019652,2]
[400009206,1767017443750,-169.6892272,0.00019653,2]
[400009207,1767017443759,-1599.48,0.00019667,2]
[400009208,1767017443770,-500.0,0.00019753,2]
[400009209,1767017443779,-438.64,0.00019809,2]
[400009210,1767017443789,-1257.0,0.00019841,2]
[400009211,1767017443798,-151.0,0.00019841,2]
[400009212,1767017443808,-1257.0,0.00019841,2]
[400009213,1767017443817,-152.0,0.00019841,2]
[400009214,1767017443827,-1257.0,0.00019841,2]
[400009215,1767017443837,-151.0,0.00019841,2]
[400009216,1767017443846,-152.0,0.00019841,2]
[400009217,1767017443856,-151.0,0.00019841,2]
[400009218,1767017443865,-1257.0,0.00019841,2]
[400009219,1767017443875,-152.0,0.00019841,2]
[400009220,1767017443884,-151.0,0.00019841,2]
[400009221,1767017443893,-1257.0,0.00019841,2]
[400009222,1767017443902,-152.0,0.00019841,2]
[400009223,1767017443911,-151.0,0.00019841,2]
[400009224,1767017443921,-1257.0,0.00019841,2]
[400009225,1767017443930,-152.0,0.00019841,2]
[400009226,1767017443939,-151.0,0.00019841,2]
[400009227,1767017443949,-1257.0,0.00019841,2]
[400009228,1767017443958,-152.0,0.00019841,2]
[400009229,1767017443967,-151.0,0.00019841,2]
[400009230,1767017443977,-1257.0,0.00019841,2]
[400009231,1767017443986,-152.0,0.00019841,2]
[400009232,1767017443996,-151.0,0.00019841,2]
[400009233,1767017444005,-1257.0,0.00019841,2]
[400009234,1767017444014,-152.0,0.00019841,2]
[400009235,1767017444024,-1257.0,0.00019841,2]
[400009236,1767017444033,-151.0,0.00019841,2]
[400009237,1767017444043,-151.0,0.00019841,2]
[400009238,1767017444052,-1257.0,0.00019841,2]
[400009239,1767017444062,-152.0,0.00019841,2]
[400009240,1767017444071,-151.0,0.00019841,2]
[400009241,1767017444081,-1257.0,0.00019841,2]
[400009242,1767017444091,-152.0,0.00019841,2]
[400009243,1767017444100,-151.0,0.00019841,2]
[400009244,1767017444110,-1257.0,0.00019841,2]
[400009245,1767017444119,-152.0,0.00019841,2]
[400009246,1767017444128,-151.0,0.00019841,2]
[400009247,1767017444139,-1257.0,0.00019841,2]
[400009248,1767017444149,-152.0,0.00019841,2]
[400009249,1767017444158,-151.0,0.00019841,2]
[400009250,1767017444167,-1257.0,0.00019841,2]
[400009251,1767017444177,-152.0,0.00019841,2]
[400009252,1767017444188,-151.0,0.00019841,2]
[400009253,1767017444198,-1257.0,0.00019841,2]
[400009254,1767017444207,-152.0,0.00019841,2]
[400009255,1767017444217,-151.0,0.00019841,2]
[400009256,1767017444227,-1257.0,0.00019841,2]
[400009257,1767017444237,-152.0,0.00019841,2]
[400009258,1767017444247,-151.0,0.00019841,2]
[400009259,1767017444256,-1257.0,0.00019841,2]
[400009260,1767017444266,-152.0,0.00019841,2]
[400009261,1767017444276,-151.0,0.00019841,2]
[400009262,1767017444286,-151.0,0.00019841,2]
[400009263,1767017444296,-152.0,0.00019841,2]
[400009264,1767017444306,-1257.0,0.00019841,2]
[400009265,1767017444316,-151.0,0.00019841,2]
[400009266,1767017444329,-152.0,0.00019841,2]
[400009267,1767017444340,-1257.0,0.00019841,2]
[400009268,1767017444349,-151.0,0.00019841,2]
[400009269,1767017444359,-1257.0,0.00019841,2]
[400009270,1767017444369,-152.0,0.00019841,2]
[400009271,1767017444382,-151.0,0.00019841,2]
[400009272,1767017444395,-1257.0,0.00019841,2]
[400009273,1767017444404,-147.90340821,0.00019841,2]
[400009274,1767017445088,-151.0,0.00016312,2]
[400009275,1767017445098,-203.0638642,0.00016743,2]
[400009276,1767017445108,-3.09659179,0.00019841,2]
[400009277,1767017445118,-152.0,0.00019841,2]
[400009278,1767017445127,-203.96954401,0.00019841,2]
[400009280,1767017446193,-1502.58689708,0.00019741,2]
[400009281,1767017446204,-1053.03045599,0.00019841,2]
[400009282,1767017446214,-151.0,0.00019841,2]
[400009283,1767017446223,-152.0,0.00019841,2]
[400009284,1767017446233,-1257.0,0.00019841,2]
[400009285,1767017446244,-151.0,0.00019841,2]
[400009286,1767017446254,-152.0,0.00019841,2]
[400009288,1767017446264,-1257.0,0.00019841,2]
[400009290,1767017446274,-151.0,0.00019841,2]
[400009293,1767017446284,-152.0,0.00019841,2]
[400009295,1767017446294,-1257.0,0.00019841,2]
[400009298,1767017446304,-152.0,0.00019841,2]
[400009300,1767017446313,-151.0,0.00019841,2]
[400009302,1767017446326,-1257.0,0.00019841,2]
[400009304,1767017446335,-152.0,0.00019841,2]
[400009306,1767017446349,-151.0,0.00019841,2]
[400009308,1767017446358,-1257.0,0.00019841,2]
[400009310,1767017446371,-152.0,0.00019841,2]
[400009312,1767017446381,-1101.52601387,0.00019841,2]
[400009314,1767017446392,-151.0,0.00019841,2]
[400009316,1767017446402,-152.0,0.00019841,2]
[400009318,1767017446412,-151.0,0.00019841,2]
[400009320,1767017446422,-152.0,0.00019841,2]
[400009322,1767017446434,-151.0,0.00019841,2]
[400009324,1767017446445,-206.21647338,0.00019841,2]
[400009326,1767017446455,-151.0,0.00019841,2]
[400009328,1767017446464,-151.0,0.00019841,2]
[400009329,1767017446473,-151.0,0.00019841,2]
[400009331,1767017446483,-151.0,0.00019841,2]
[400009333,1767017446492,-151.0,0.00019841,2]
[400009335,1767017446501,-151.0,0.00019841,2]
[400009337,1767017446511,-199.9866639,0.00019841,2]
[400009339,1767017446520,-151.0,0.00019841,2]
[400009341,1767017446529,-153.43,0.0001999,2]
[400009356,1767017446539,-300.0,0.00019999,2]
[400009359,1767017446705,-300.0,0.00019999,2]
[400009360,1767017446715,-666.0,0.00019999,2]
[400009362,1767017446724,-300.0,0.00019999,2]
[400009364,1767017446734,-10889.24472838,0.0002,2]
[400009365,1767017446743,-25531.1818469,0.0002,2]
[400009367,1767017446752,-3088.33,0.0002,2]
[400009368,1767017446763,-592.07268719,0.0002,4]
[400009369,1767017446784,-7707.92731281,0.0002,4]
[400009370,1767017446793,-3950.0,0.0002,2]
[400009371,1767017446807,-17757.69824548,0.0002,2]
[400009372,1767017446820,-49164.27330707,0.0002,2]
[400009373,1767017446830,-7271.35569809,0.0002,2]
[400009374,1767017446839,-1291.22008659,0.0002,2]
[400009375,1767017446849,-1042.23044353,0.0002,2]
[400009376,1767017446859,-2856.14038107,0.0002,2]
[400009377,1767017446868,-12892.19278862,0.0002,2]
[400009378,1767017446878,-600.0,0.0002,2]
[400009379,1767017446889,-150.0,0.0002,2]
[400009380,1767017446899,-150.0,0.0002,2]
[400009381,1767017446908,-194.61846708,0.0002,2]
[400009382,1767017446918,-8720.0,0.0002001,2]
[400009383,1767017446927,-438.64,0.00020083,2]
[400009384,1767017446936,-1004.22119149,0.000201,2]
[400009385,1767017446946,-443.88,0.00020187,2]
[400009386,1767017446955,-438.66,0.00020357,2]
[400009387,1767017446965,-823.0,0.00020491,2]
[400009388,1767017446976,-162.38152614,0.000205,2]
[400009389,1767017446985,-401.13779076,0.00020502,2]
[400009390,1767017446995,-17481.43836845,0.00020548,2]
[400009391,1767017447006,-3982.11163155,0.00020548,2]
[400009392,1767017447016,-7224.68189263,0.00020565,2]
[400009393,1767017447026,-16511.68903224,0.000207,2]
[400009394,1767017447039,-1744.78853724,0.000207,2]
[400009395,1767017447051,-1322.89955036,0.000207,2]
[400009396,1767017447084,-3016.91653496,0.000207,2]
[400009397,1767017447094,-2000.0,0.000207,2]
[400009398,1767017447104,-1000.0,0.000207,2]
[400009399,1767017447113,-2989.22054806,0.000209,30]
[400009400,1767017447123,-19082.40654234,0.00021,2]
[400009401,1767017447133,-686.81305732,0.00021,2]
[400009402,1767017447142,-196.42385615,0.00021,2]
[400009403,1767017447152,-350.0,0.00021,2]
[400009404,1767017447161,-1019.54660395,0.00021118,2]
[400009405,1767017447171,-221.5500965,0.000215,2]
[400009406,1767017447180,-1000.0,0.0002158,2]
[400009407,1767017447190,-8641.1556962,0.00021582,2]
[400009408,1767017447200,-1599.48,0.00021634,2]
[400009409,1767017447209,-312.92,0.00021797,2]
[400009410,1767017447218,-3004.87,0.00021918,2]
[400009411,1767017447228,-5000.0,0.00021918,2]
[400009412,1767017447237,-153.65384883,0.00021918,2]
[400009413,1767017447247,-500.0,0.00021918,2]
[400009414,1767017447257,-500.0,0.00021918,2]
[400009415,1767017447266,-500.0,0.00021918,2]
[400009416,1767017447276,-500.0,0.00021918,2]
[400009417,1767017447287,-500.0,0.00021918,2]
[400009418,1767017447297,-500.0,0.00021918,2]
[400009419,1767017447306,-500.0,0.00021918,2]
[400009420,1767017447316,-500.0,0.00021918,2]
[400009421,1767017447331,-500.0,0.00021918,2]
[400009422,1767017447341,-500.0,0.00021918,2]
[400009423,1767017447351,-500.0,0.00021918,2]
[400009424,1767017447361,-500.0,0.00021918,2]
[400009425,1767017447371,-500.0,0.00021918,2]
[400009426,1767017447381,-500.0,0.00021918,2]
[400009427,1767017447391,-500.0,0.00021918,2]
[400009428,1767017447400,-500.0,0.00021918,2]
[400009429,1767017447410,-535.01476773,0.00021918,2]
[400009430,1767017447420,-500.0,0.00021918,2]
[400009431,1767017447430,-300.0,0.00021999,2]
[400009432,1767017447447,-313.99302103,0.00021999,2]
[400009433,1767017447457,-14532.05157131,0.00022,7]
[400009438,1767017554658,578.44527,0.0003013,120]
[400009441,1767017625348,950.0,0.00030137,120]
[400009449,1767017949789,2008.319,0.0003013,120]
[400009673,1767018190000,307.0,0.00030137,120]
[400009674,1767018190032,150.45,0.00030136,120]
[400010070,1767018259873,154.21,7.816e-05,2]
[400010075,1767018260076,154.21,8.275e-05,2]
[400010081,1767018260286,154.21,8.735e-05,2]
[400010087,1767018260481,154.21,9.195e-05,2]
[400010093,1767018260673,154.21,9.654e-05,2]
[400010099,1767018260866,154.21,0.00010114,2]
[400010106,1767018261106,154.21,0.00010574,2]
[400010112,1767018261300,154.21,0.00011034,2]
[400010118,1767018261507,154.21,0.00011493,2]
[400010123,1767018261690,154.21,0.00011953,2]
[400010129,1767018261892,154.21,0.00012413,2]
[400010624,1767018320170,4343.49,9e-05,2]
[400010625,1767018320195,3004.03564809,9e-05,2]
[400010626,1767018361638,6995.97435191,8e-05,2]
[400010627,1767018361664,3004.03564809,8e-05,2]
[400010628,1767018365680,3865.81008017,0.00011,2]
[400010631,1767018470977,3130.16427174,0.00012,2]
[400010632,1767018471000,2802.58863738,0.00012,2]
[400010635,1767018490215,306.70163103,0.000125,2]
[400010636,1767018494107,500.0,0.00013,10]
[400010645,1767018518686,6703.13877056,0.0001,2]
[400012423,1767018631290,-154.21,0.00012872,2]
[400012425,1767018631301,-250.0,0.00013102,2]
[400012426,1767018631311,-69.11,0.00013332,2]
[400012428,1767018631324,-85.1,0.00013332,2]
[400012430,1767018631333,-273.70739794,0.00013764,2]
[400012431,1767018631344,-154.21,0.00013792,2]
[400012432,1767018631354,-250.0,0.0001416,2]
[400012433,1767018631365,-193.0,0.0001416,2]
[400012434,1767018631375,-195.0,0.0001416,2]
[400012435,1767018631385,-154.21,0.00014252,2]
[400012436,1767018631396,-150.0,0.00014572,2]
[400012437,1767018631406,-300.0,0.00014572,2]
[400012438,1767018631416,-300.0,0.00014572,2]
[400012439,1767018631430,-500.0,0.00014573,2]
[400012440,1767018631441,-500.0,0.00014573,2]
[400012441,1767018631452,-500.0,0.00014573,2]
[400012442,1767018631463,-500.0,0.00014573,2]
[400012443,1767018631474,-385.4280122,0.00014573,2]
[400012444,1767018631484,-500.48470308,0.00014573,2]
[400012445,1767018631496,-216.51590329,0.00014573,2]
[400012447,1767018631507,-500.0,0.00014573,2]
[400012449,1767018631518,-539.36053527,0.00014573,2]
[400012450,1767018631529,-500.0,0.00014573,2]
[400012451,1767018631539,-549.61649395,0.00014573,2]
[400012452,1767018631550,-500.0,0.00014573,2]
[400012453,1767018631560,-501.82675506,0.00014573,2]
[400012455,1767018631570,-315.76474651,0.00014573,2]
[400012457,1767018631580,-476.61576243,0.00014573,2]
[400012459,1767018631590,-500.0,0.00014573,2]
[400012461,1767018631600,-318.77837914,0.00014573,2]
[400012463,1767018631613,-500.0,0.00014573,2]
[400012464,1767018631624,-500.0,0.00014573,2]
[400012467,1767018631639,-1232.14,0.00014573,2]
[400012469,1767018631648,-154.21,0.00014711,2]
[400012471,1767018631659,-401.86,0.0001476,2]
[400012473,1767018631669,-1232.14,0.00014847,2]
[400012475,1767018631679,-1852.42,0.00014972,2]
[400012477,1767018631690,-999.0,0.00015016,3]
[400012479,1767018631703,-664.63807819,0.00015121,2]
[400012481,1767018631712,-500.0,0.00015121,2]
[400012483,1767018631723,-1000.0,0.00015121,2]
[400012485,1767018631733,-502.99400047,0.00015121,2]
[400012487,1767018631743,-1000.0,0.00015121,2]
[400012489,1767018631753,-1000.0,0.00015121,2]
[400012491,1767018631763,-500.0,0.00015121,2]
[400012493,1767018631772,-1000.0,0.00015121,2]
[400012496,1767018631783,-1232.14,0.00015121,2]
[400012497,1767018631793,-154.21,0.00015171,2]
[400012499,1767018631805,-1232.14,0.00015395,2]
[400012501,1767018631815,-300.85334307,0.0001548,2]
[400012504,1767018631828,-473.55662892,0.0001548,2]
[400012506,1767018631838,-10032.44301602,0.00015502,2]
[400012508,1767018631849,-115270.26689177,0.00015505,2]
[400012510,1767018631864,-974.17884844,0.00015505,2]
[400012537,1767018632254,-14558.57422862,0.00015505,2]
[400012538,1767018632266,-825.88357623,0.00015505,2]
[400012539,1767018632282,-18244.29049011,0.00015505,2]
[400012540,1767018632305,-63599.71038322,0.00015505,2]
[400012541,1767018632347,-1640.59653455,0.00015505,2]
[400012542,1767018632360,-580.36061433,0.00015505,2]
[400012543,1767018632372,-1144.96358765,0.00015505,2]
[400012544,1767018632384,-52978.39806496,0.00015505,2]
[400012545,1767018632395,-20237.42251769,0.00015505,2]
[400012546,1767018632406,-867.29465335,0.00015505,2]
[400012547,1767018632427,-756.71092669,0.00015505,2]
[400012548,1767018632439,-4806.29998,0.00015505,2]
[400012549,1767018632454,-1468.67056078,0.00015505,2]
[400012550,1767018632469,-2073.29589676,0.00015505,2]
[400012551,1767018632480,-339.75260614,0.00015505,2]
[400012554,1767018637371,-2437.99103874,0.00015505,2]
[400012555,1767018637383,-1887.99999,0.00015505,2]
[400012556,1767018637433,-675.01067611,0.00015505,2]
[400012557,1767018637444,-2209.98352126,0.00015505,2]
[400012558,1767018637455,-666.24,0.00015505,2]
[400012559,1767018637466,-62380.68402102,0.00015505,2]
[400012560,1767018637478,-234362.5791393,0.00015505,2]
[400012561,1767018637490,-1013.58894341,0.00015505,2]
[400012562,1767018637501,-7942.50148664,0.00015505,2]
[400012563,1767018637512,-1046.26,0.00015505,2]
[400012564,1767018637523,-631.32,0.00015505,2]
[400012565,1767018637535,-474.71000045,0.00015505,2]
[400012566,1767018637546,-1377.07327054,0.00015505,2]
[400012567,1767018637561,-498.98998669,0.00015505,2]
[400012568,1767018637572,-1766.64048078,0.00015505,2]
[400012569,1767018637583,-7167.08885631,0.00015505,2]
[400012570,1767018637594,-10115.66751706,0.00015505,2]
[400012571,1767018637606,-1986.98446939,0.00015505,2]
[400012597,1767018639451,-3398.94524865,0.00015505,2]
[400012598,1767018639510,-4430.16970785,0.00015505,2]
[400012599,1767018639713,-591.46997237,0.00015505,2]
[400012600,1767018639724,-352571.43131214,0.00015505,2]
[400012601,1767018639734,-4475.9752,0.00015562,2]
[400012602,1767018639743,-401.86,0.0001558,2]
[400012603,1767018639752,-500.0,0.00015605,2]
[400012604,1767018639763,-3240.0,0.00015605,2]
[400012605,1767018639773,-10810.69,0.00015605,2]
[400012606,1767018639783,-154.21,0.00015631,2]
[400012607,1767018639793,-1232.14,0.00015668,2]
[400012608,1767018639802,-1000.0,0.00015668,2]
[400012609,1767018639812,-186.85634415,0.00015807,2]
[400012610,1767018639823,-151.0,0.00015906,2]
[400012611,1767018639833,-200.0,0.0001591,2]
[400012612,1767018639842,-636.393,0.0001591,2]
[400012613,1767018639852,-1232.14,0.00015942,2]
[400012614,1767018639864,-420.0,0.00015955,2]
[400012615,1767018639874,-500.0,0.00015973,2]
[400012616,1767018639885,-22114.66624448,0.00016,2]
[400012617,1767018639894,-174.63,0.00016003,2]
[400012618,1767018639904,-296.57004069,0.00016073,2]
[400012619,1767018639915,-9999.99,0.00016116,2]
[400012620,1767018639926,-473.55662892,0.0001619,2]
[400012621,1767018639936,-32941.07643706,0.000162,5]
[400012622,1767018639946,-1232.14,0.00016216,2]
[400012623,1767018639956,-4744.74,0.00016236,2]
[400012624,1767018639966,-532.14981469,0.00016265,2]
[400012625,1767018639975,-191.98127916,0.00016265,2]
[400012626,1767018639986,-9476.75513263,0.00016266,2]
[400012627,1767018639996,-728.24757425,0.00016338,2]
[400012628,1767018640006,-5779.74551414,0.00016338,2]
[400012629,1767018640016,-1177.58596832,0.00016341,5]
[400012630,1767018640026,-500.0,0.00016341,2]
[400012631,1767018640036,-507.68415604,0.00016341,2]
[400012632,1767018640045,-516.65166204,0.00016341,2]
[400012634,1767018640054,-500.0,0.00016341,2]
[400012635,1767018640063,-500.0,0.00016341,2]
[400012636,1767018640073,-500.0,0.00016341,2]
[400012637,1767018640083,-500.0,0.00016341,2]
[400012638,1767018640092,-500.0,0.00016341,2]
[400012639,1767018640102,-500.0,0.00016341,2]
[400012640,1767018640112,-500.0,0.00016341,2]
[400012641,1767018640122,-500.0,0.00016341,2]
[400012642,1767018640132,-500.0,0.00016341,2]
[400012643,1767018640142,-500.0,0.00016341,2]
[400012644,1767018640153,-500.0,0.00016341,2]
[400012645,1767018640163,-522.96995118,0.00016341,2]
[400012646,1767018640173,-500.0,0.00016341,2]
[400012647,1767018640183,-500.0,0.00016341,2]
[400012648,1767018640194,-500.0,0.00016341,2]
[400012649,1767018640204,-500.0,0.00016341,2]
[400012650,1767018640214,-500.0,0.00016341,2]
[400012651,1767018640223,-500.0,0.00016341,2]
[400012652,1767018640233,-500.0,0.00016341,2]
[400012653,1767018640243,-500.0,0.00016341,2]
[400012654,1767018640253,-500.0,0.00016341,2]
[400012655,1767018640263,-500.0,0.00016341,2]
[400012656,1767018640273,-500.0,0.00016341,2]
[400012657,1767018640283,-500.0,0.00016341,2]
[400012658,1767018640293,-500.0,0.00016341,2]
[400012659,1767018640304,-500.0,0.00016341,2]
[400012660,1767018640314,-500.0,0.00016341,2]
[400012661,1767018640323,-500.0,0.00016341,2]
[400012662,1767018640332,-500.0,0.00016341,2]
[400012663,1767018640342,-500.0,0.00016341,2]
[400012664,1767018640352,-1177.58596831,0.00016341,5]
[400012665,1767018640364,-1177.58596831,0.00016341,5]
[400012666,1767018640374,-500.0,0.00016341,2]
[400012667,1767018640383,-500.0,0.00016341,2]
[400012668,1767018640392,-500.0,0.00016341,2]
[400012669,1767018640401,-500.0,0.00016341,2]
[400012670,1767018640410,-500.0,0.00016341,2]
[400012671,1767018640420,-500.0,0.00016341,2]
[400012672,1767018640429,-500.0,0.00016341,2]
[400012673,1767018640438,-500.0,0.00016341,2]
[400012674,1767018640448,-500.0,0.00016341,2]
[400012675,1767018640457,-506.34489947,0.00016341,2]
[400012676,1767018640467,-200.38369098,0.0001639,2]
[400012677,1767018640476,-401.86,0.000164,2]
[400012678,1767018640486,-8321.04,0.00016438,2]
[400012679,1767018640495,-1232.18941251,0.0001649,2]
[400012680,1767018640505,-278.71,0.0001649,2]
[400012681,1767018640514,-1000.0,0.00016521,2]
[400012682,1767018640523,-259.68,0.00016532,2]
[400012683,1767018640533,-165.38,0.00016712,2]
[400012684,1767018640542,-21890.3594,0.00016796,2]
[400012685,1767018640551,-1000.0,0.00016796,2]
[400012686,1767018640561,-165.28,0.0001683,2]
[400012687,1767018640570,-1282.43425559,0.000169,2]
[400012688,1767018640579,-313.52630456,0.000169,2]
[400012689,1767018640589,-7843.19674455,0.000169,2]
[400012690,1767018640598,-834.28232255,0.000169,2]
[400012691,1767018640607,-500.0,0.000169,2]
[400012692,1767018640620,-198.10586609,0.000169,2]
[400012693,1767018640630,-428.09091128,0.00016944,2]
[400012694,1767018640639,-200.38369098,0.0001699,2]
[400012695,1767018640648,-200.38369098,0.0001699,2]
[400012696,1767018640659,-300.0,0.00016999,2]
[400012697,1767018640668,-666.0,0.00016999,2]
[400012698,1767018640676,-2000.0,0.00017,2]
[400012699,1767018640686,-2000.0,0.00017,2]
[400012700,1767018640696,-1672.637,0.00017,2]
[400012701,1767018640707,-250.0,0.00017,2]
[400012702,1767018640716,-801939.07444116,0.00017,2]
[400012703,1767018640728,-2437915.21941511,0.00017,2]
[400012710,1767018643129,-473.55662892,0.000169,2]
[400012711,1767018643139,-176.44337108,0.000169,2]
[400012712,1767018643150,-12.64942653,0.000169,2]
[400012713,1767018643160,-8043.10510586,0.00017,2]
[400012714,1767018643198,-631.0,0.00017,2]
[400012715,1767018643209,-615215.59188051,0.00017,2]
[400012716,1767018643221,-254.49462966,0.00017,2]
[400012717,1767018643233,-259.19169647,0.00017,2]
[400012718,1767018643244,-2493.1,0.00017,2]
[400012719,1767018643255,-649.83334176,0.00017,2]
[400012720,1767018644231,-234.92451439,0.000169,2]
[400012721,1767018644241,-5784.81381428,0.00017,2]
[400012722,1767018644254,-554.60931742,0.00017,2]
[400012727,1767018645382,-86591.03536303,0.00017,2]
[400012728,1767018651309,-380151.69379875,0.00017,2]
[400012729,1767018651319,-2605532.25337476,0.00017,2]